[Event "European Online Club-ch-B 2021"]
[Site "Online"]
[Date "2021.03.27"]
[Round "7.12"]
[White "Kramer, Julian"]
[Black "Meylan, Andre"]
[Result "1-0"]
[ECO "C01"]
[WhiteElo "2419"]
[BlackElo "2205"]
[Annotator "NA"]
[PlyCount "61"]
[EventDate "2021.03.27"]
[EventType "team-tourn"]
[EventCountry "NET"]
[SourceTitle "playchess.com"]
[Source "ChessBase"]
[SourceQuality "1"]
[TimeControl "900+5"]

1. e4 {[%emt 0:00:00]} e6 {[%emt 0:00:02]} 2. d4 {[%emt 0:00:03]} d5 {[%emt 0:00:02]} 3. Bd3 {[%emt 0:00:01]} c5 {[%emt 0:00:02]} 4. exd5 {[%emt 0:00:03]} exd5 {[%emt 0:00:00]} 5. Nf3 {[%emt 0:00:03]} Nf6 {[%emt 0:00:04]} 6. O-O {[%emt 0:00:02]} c4 {[%emt 0:00:01]} 7. Be2 {[%emt 0:00:02]} Be7 {[%emt 0:01:08]} 8. b3 {[%emt 0:00:07]} cxb3 {[%emt 0:00:03]} 9. axb3 {[%emt 0:00:00]} O-O {[%emt 0:00:08]} 10. c3 {[%emt 0:00:53]} Nc6 {[%emt 0:00:07]} 11. Na3 {[%emt 0:00:05]} Ne4 {[%emt 0:00:30]} 12. Bb2 {[%emt 0:00:15]} Bg4 {[%emt 0:00:46]} 13. Nc2 {[%emt 0:00:11]} Re8 {[%emt 0:00:21]} 14. Ne3 {[%emt 0:00:10]} Bh5 {[%emt 0:00:02]} 15. c4 {[%emt 0:01:00]} dxc4 {[%emt 0:00:58]} 16. bxc4 {[%emt 0:00:00]} Bf6 {[%emt 0:00:01]} 17. Nd5 {[%emt 0:00:30]} Ng5 {[%emt 0:02:05]} 18. Nxf6+ {[%emt 0:01:07]} Qxf6 {[%emt 0:00:09]} 19. Ne5 {[%emt 0:00:04]} Bxe2 {[%emt 0:01:38]} 20. Qxe2 {[%emt 0:00:00]} Nxe5 {[%emt 0:02:29]} 21. dxe5 {[%emt 0:00:00]} Qc6 {[%emt 0:00:11]} 22. f4 {[%emt 0:02:02]} Ne4 {[%emt 0:00:21]} 23. f5 {[%emt 0:00:07]} Rad8 {[%emt 0:00:44]} 24. Rf4 {[%emt 0:03:25]} Qc5+ {[%emt 0:01:43]} 25. Kh1 {[%emt 0:00:19]} Rd2 {[%emt 0:00:17]} 26. Qxe4 {[%emt 0:00:04]} Rxb2 {[%emt 0:00:01]} 27. e6 {[%emt 0:00:14]} fxe6 {[%emt 0:00:43]} 28. f6 {[%emt 0:01:39]} gxf6 {[%emt 0:00:58]} 29. Rxf6 {[%emt 0:00:00]} Qc6 {[%emt 0:00:45]} 30. Qg4+ {[%emt 0:00:28]} Kh8 {[%emt 0:00:02]} 31. Rf7 {[%emt 0:00:44]} 1-0

[Event "European Online Club-ch-B 2021"]
[Site "Online"]
[Date "2021.03.27"]
[Round "7.16"]
[White "Ragger, Markus"]
[Black "Naudion, Gregoire"]
[Result "1-0"]
[ECO "C44"]
[WhiteElo "2680"]
[BlackElo "2146"]
[Annotator "ChessBase"]
[PlyCount "89"]
[EventDate "2021.03.27"]
[EventType "team-tourn"]
[EventCountry "NET"]
[SourceTitle "playchess.com"]
[Source "ChessBase"]
[SourceQuality "1"]
[TimeControl "900+5"]

1. e4 {[%emt 0:00:00]} d6 {[%emt 0:01:20]} 2. d4 {[%emt 0:00:04]} Nf6 {[%emt 0:00:01]} 3. Bd3 {[%emt 0:00:02]} e5 {[%emt 0:00:01]} 4. c3 {[%emt 0:00:02]} Nc6 {[%emt 0:00:01]} 5. Nf3 {[%emt 0:00:03]} Bg4 {[%emt 0:00:06]} 6. d5 {[%emt 0:00:04]} Ne7 {[%emt 0:00:03]} 7. h3 {[%emt 0:00:01]} Bc8 {[%emt 0:00:11]} 8. c4 {[%emt 0:00:03]} Ng6 {[%emt 0:00:26]} 9. Nc3 {[%emt 0:00:05]} Be7 {[%emt 0:00:04]} 10. a4 {[%emt 0:00:12]} O-O {[%emt 0:00:10]} 11. a5 {[%emt 0:00:08]} Nd7 {[%emt 0:04:26]} 12. Bc2 {[%emt 0:00:41]} Nh4 {[%emt 0:00:15]} 13. Nxh4 {[%emt 0:01:22]} Bxh4 {[%emt 0:00:03]} 14. Qh5 {[%emt 0:00:49]} Nc5 {[%emt 0:03:10]} 15. b4 {[%emt 0:00:59]} Na6 {[%emt 0:00:03]} 16. Rb1 {[%emt 0:00:35]} c5 {[%emt 0:00:49]} 17. dxc6 {[%emt 0:00:20]} bxc6 {[%emt 0:00:03]} 18. O-O {[%emt 0:00:47]} Be6 {[%emt 0:00:21]} 19. Qe2 {[%emt 0:00:42]} Rb8 {[%emt 0:00:11]} 20. Ba3 {[%emt 0:02:58]} c5 {[%emt 0:01:06]} 21. bxc5 {[%emt 0:00:02]} Rxb1 {[%emt 0:01:29]} 22. Rxb1 {[%emt 0:00:28]} Qxa5 {[%emt 0:00:04]} 23. Nb5 {[%emt 0:00:03]} dxc5 {[%emt 0:00:15]} 24. Bb2 {[%emt 0:00:51]} Bf6 {[%emt 0:00:22]} 25. Bc3 {[%emt 0:01:02]} Nb4 {[%emt 0:00:17]} 26. Bb3 {[%emt 0:01:40]} a6 {[%emt 0:00:17]} 27. Nd6 {[%emt 0:00:08]} Qc7 {[%emt 0:00:44]} 28. Nf5 {[%emt 0:00:04]} Nc6 {[%emt 0:00:10]} 29. Ne3 {[%emt 0:00:17]} Nd4 {[%emt 0:00:01]} 30. Qa2 {[%emt 0:00:09]} Rb8 {[%emt 0:00:23]} 31. Bd1 {[%emt 0:00:05]} Rxb1 {[%emt 0:00:07]} 32. Qxb1 {[%emt 0:00:02]} Bd8 {[%emt 0:00:18]} 33. Nd5 {[%emt 0:00:21]} Bxd5 {[%emt 0:00:11]} 34. exd5 {[%emt 0:00:01]} Qb6 {[%emt 0:00:03]} 35. Qe4 {[%emt 0:00:03]} Bc7 {[%emt 0:00:02]} 36. g4 {[%emt 0:01:39]} g6 {[%emt 0:00:02]} 37. g5 {[%emt 0:00:07]} f5 {[%emt 0:00:19]} 38. gxf6 {[%emt 0:00:07]} Qxf6 {[%emt 0:00:01]} 39. Bg4 {[%emt 0:00:32]} h5 {[%emt 0:00:02]} 40. Bd7 {[%emt 0:00:25]} Kg7 {[%emt 0:00:11]} 41. Kg2 {[%emt 0:00:10]} Qg5+ {[%emt 0:00:01]} 42. Kh2 {[%emt 0:00:02]} Qc1 {[%emt 0:00:12]} 43. Qe3 {[%emt 0:00:11]} e4+ {[%emt 0:00:03]} 44. Kg2 {[%emt 0:00:02]} Qxe3 {[%emt 0:00:07]} 45. fxe3 {[%emt 0:00:02]} 1-0

[Event "European Online Club-ch-B 2021"]
[Site "Online"]
[Date "2021.03.27"]
[Round "7.17"]
[White "Sorensen, Hampus"]
[Black "Brunner, Nicolas"]
[Result "1/2-1/2"]
[ECO "D44"]
[WhiteElo "2395"]
[BlackElo "2418"]
[Annotator "NA"]
[PlyCount "82"]
[EventDate "2021.03.27"]
[EventType "team-tourn"]
[EventCountry "NET"]
[SourceTitle "playchess.com"]
[Source "ChessBase"]
[SourceQuality "1"]
[TimeControl "900+5"]

1. d4 {[%emt 0:00:00]} d5 {[%emt 0:00:02]} 2. c4 {[%emt 0:00:03]} e6 {[%emt 0:00:01]} 3. Nf3 {[%emt 0:00:03]} Nf6 {[%emt 0:00:01]} 4. Bg5 {[%emt 0:00:02]} dxc4 {[%emt 0:00:02]} 5. e4 {[%emt 0:00:40]} b5 {[%emt 0:00:04]} 6. a4 {[%emt 0:00:07]} c6 {[%emt 0:00:02]} 7. Nc3 {[%emt 0:00:19]} Qb6 {[%emt 0:00:01]} 8. Be2 {[%emt 0:00:14]} Bb7 {[%emt 0:00:02]} 9. O-O {[%emt 0:00:07]} Nbd7 {[%emt 0:00:02]} 10. a5 {[%emt 0:00:54]} Qa6 {[%emt 0:00:02]} 11. b3 {[%emt 0:00:12]} Bb4 {[%emt 0:00:02]} 12. Qc2 {[%emt 0:01:47]} Bxc3 {[%emt 0:02:39]} 13. Qxc3 {[%emt 0:00:03]} Nxe4 {[%emt 0:00:06]} 14. Qb4 {[%emt 0:00:03]} Nxg5 {[%emt 0:01:31]} 15. Nxg5 {[%emt 0:00:06]} c5 {[%emt 0:00:28]} 16. dxc5 {[%emt 0:00:12]} O-O {[%emt 0:00:28]} 17. bxc4 {[%emt 0:01:40]} bxc4 {[%emt 0:00:03]} 18. Rfc1 {[%emt 0:00:23]} Ne5 {[%emt 0:01:31]} 19. Bxc4 {[%emt 0:00:36]} Nxc4 {[%emt 0:00:16]} 20. Qxc4 {[%emt 0:00:12]} Qxc4 {[%emt 0:00:34]} 21. Rxc4 {[%emt 0:00:04]} Bd5 {[%emt 0:00:00]} 22. Rc2 {[%emt 0:00:14]} Rfc8 {[%emt 0:00:11]} 23. Nf3 {[%emt 0:00:08]} Bxf3 {[%emt 0:00:09]} 24. gxf3 {[%emt 0:00:03]} Rc6 {[%emt 0:00:00]} 25. Rb1 {[%emt 0:00:30]} Rac8 {[%emt 0:00:32]} 26. Rb7 {[%emt 0:00:18]} g6 {[%emt 0:01:15]} 27. Rxa7 {[%emt 0:00:21]} Rxc5 {[%emt 0:00:01]} 28. Rxc5 {[%emt 0:00:02]} Rxc5 {[%emt 0:00:02]} 29. a6 {[%emt 0:00:46]} Ra5 {[%emt 0:00:03]} 30. Kg2 {[%emt 0:00:08]} Kg7 {[%emt 0:00:04]} 31. f4 {[%emt 0:00:18]} Ra3 {[%emt 0:00:12]} 32. Ra8 {[%emt 0:00:21]} Kf6 {[%emt 0:00:14]} 33. Ra7 {[%emt 0:00:04]} h6 {[%emt 0:00:15]} 34. f3 {[%emt 0:01:57]} g5 {[%emt 0:00:34]} 35. fxg5+ {[%emt 0:00:07]} hxg5 {[%emt 0:00:01]} 36. Kf2 {[%emt 0:00:48]} Kg6 {[%emt 0:00:14]} 37. Kg2 {[%emt 0:00:09]} f6 {[%emt 0:00:07]} 38. Ra8 {[%emt 0:00:18]} Kf5 {[%emt 0:00:03]} 39. a7 {[%emt 0:00:03]} e5 {[%emt 0:01:21]} 40. Kf2 {[%emt 0:00:32]} Ra2+ {[%emt 0:00:38]} 41. Kg3 {[%emt 0:00:18]} Ra4 {[%emt 0:00:07]} 1/2-1/2

[Event "European Online Club-ch-B 2021"]
[Site "Online"]
[Date "2021.03.27"]
[Round "7.18"]
[White "Mathieu, Phileas"]
[Black "Agrest, Inna"]
[Result "0-1"]
[ECO "C26"]
[WhiteElo "2240"]
[BlackElo "2285"]
[Annotator "NA"]
[PlyCount "80"]
[EventDate "2021.03.27"]
[EventType "team-tourn"]
[EventCountry "NET"]
[SourceTitle "playchess.com"]
[Source "ChessBase"]
[SourceQuality "1"]
[TimeControl "900+5"]

1. e4 {[%emt 0:00:00]} e5 {[%emt 0:00:05]} 2. Nc3 {[%emt 0:00:04]} Nc6 {[%emt 0:00:05]} 3. g3 {[%emt 0:00:06]} Nf6 {[%emt 0:00:02]} 4. Bg2 {[%emt 0:00:02]} Bc5 {[%emt 0:00:03]} 5. Nge2 {[%emt 0:00:05]} a5 {[%emt 0:00:03]} 6. O-O {[%emt 0:00:02]} d6 {[%emt 0:00:19]} 7. d3 {[%emt 0:00:10]} a4 {[%emt 0:00:18]} 8. a3 {[%emt 0:00:06]} O-O {[%emt 0:00:06]} 9. h3 {[%emt 0:00:03]} Bd7 {[%emt 0:00:42]} 10. Kh2 {[%emt 0:00:03]} Nd4 {[%emt 0:00:52]} 11. f4 {[%emt 0:00:08]} c6 {[%emt 0:00:38]} 12. Nxd4 {[%emt 0:00:16]} Bxd4 {[%emt 0:00:07]} 13. Ne2 {[%emt 0:00:24]} Ba7 {[%emt 0:00:10]} 14. g4 {[%emt 0:00:06]} Nxg4+ {[%emt 0:01:15]} 15. Kg3 {[%emt 0:00:25]} exf4+ {[%emt 0:02:23]} 16. Nxf4 {[%emt 0:01:16]} Ne3 {[%emt 0:02:18]} 17. Bxe3 {[%emt 0:00:22]} Bxe3 {[%emt 0:00:00]} 18. Qf3 {[%emt 0:00:13]} Ba7 {[%emt 0:01:05]} 19. Kh2 {[%emt 0:00:17]} Qh4 {[%emt 0:00:33]} 20. c3 {[%emt 0:01:49]} f5 {[%emt 0:00:21]} 21. Rae1 {[%emt 0:01:36]} Rae8 {[%emt 0:00:18]} 22. Qg3 {[%emt 0:08:21]} Qxg3+ {[%emt 0:01:57]} 23. Kxg3 {[%emt 0:00:05]} fxe4 {[%emt 0:00:01]} 24. Bxe4 {[%emt 0:00:06]} d5 {[%emt 0:00:19]} 25. Nxd5 {[%emt 0:00:41]} Rxf1 {[%emt 0:00:51]} 26. Rxf1 {[%emt 0:00:10]} cxd5 {[%emt 0:00:04]} 27. Bxd5+ {[%emt 0:00:01]} Be6 {[%emt 0:00:28]} 28. Re1 {[%emt 0:00:18]} Kf7 {[%emt 0:00:09]} 29. Bxb7 {[%emt 0:00:04]} Rb8 {[%emt 0:00:12]} 30. Bc6 {[%emt 0:00:03]} Rxb2 {[%emt 0:00:01]} 31. Rf1+ {[%emt 0:00:01]} Ke7 {[%emt 0:00:25]} 32. Bxa4 {[%emt 0:00:02]} g5 {[%emt 0:00:32]} 33. d4 {[%emt 0:00:14]} Bb8+ {[%emt 0:00:16]} 34. Kf3 {[%emt 0:00:02]} Bxh3 {[%emt 0:00:07]} 35. Re1+ {[%emt 0:00:03]} Kf6 {[%emt 0:00:09]} 36. Ke4 {[%emt 0:00:04]} Ra2 {[%emt 0:00:24]} 37. Bb5 {[%emt 0:00:10]} Bf5+ {[%emt 0:00:13]} 38. Kf3 {[%emt 0:00:04]} Rxa3 {[%emt 0:00:02]} 39. Rc1 {[%emt 0:00:03]} Bf4 {[%emt 0:00:03]} 40. Ra1 {[%emt 0:00:05]} Rxa1 {[%emt 0:00:04]} 0-1

[Event "European Online Club-ch-B 2021"]
[Site "Online"]
[Date "2021.03.27"]
[Round "7.19"]
[White "Rasti, Arvin"]
[Black "Adrian, Leopold"]
[Result "1-0"]
[ECO "A57"]
[WhiteElo "2195"]
[BlackElo "2009"]
[Annotator "NA"]
[PlyCount "103"]
[EventDate "2021.03.27"]
[EventType "team-tourn"]
[EventCountry "NET"]
[SourceTitle "playchess.com"]
[Source "ChessBase"]
[SourceQuality "1"]
[TimeControl "900+5"]

1. d4 {[%emt 0:00:00]} Nf6 {[%emt 0:00:03]} 2. c4 {[%emt 0:00:04]} c5 {[%emt 0:00:01]} 3. d5 {[%emt 0:00:02]} b5 {[%emt 0:00:02]} 4. cxb5 {[%emt 0:00:01]} a6 {[%emt 0:00:01]} 5. f3 {[%emt 0:00:01]} axb5 {[%emt 0:01:12]} 6. e4 {[%emt 0:00:03]} b4 {[%emt 0:00:10]} 7. Bc4 {[%emt 0:00:33]} g6 {[%emt 0:00:10]} 8. Ne2 {[%emt 0:00:10]} Bg7 {[%emt 0:00:06]} 9. O-O {[%emt 0:00:06]} O-O {[%emt 0:00:02]} 10. Be3 {[%emt 0:00:39]} d6 {[%emt 0:00:05]} 11. Nd2 {[%emt 0:00:03]} Nbd7 {[%emt 0:00:10]} 12. Qc2 {[%emt 0:00:24]} Ne5 {[%emt 0:00:19]} 13. a3 {[%emt 0:00:28]} Nxc4 {[%emt 0:01:09]} 14. Nxc4 {[%emt 0:00:04]} Ba6 {[%emt 0:00:30]} 15. axb4 {[%emt 0:00:45]} cxb4 {[%emt 0:00:18]} 16. Rfc1 {[%emt 0:01:25]} Qc7 {[%emt 0:04:14]} 17. Qb3 {[%emt 0:01:02]} Qxc4 {[%emt 0:02:00]} 18. Qxc4 {[%emt 0:02:12]} Bxc4 {[%emt 0:00:04]} 19. Rxa8 {[%emt 0:00:04]} Bxe2 {[%emt 0:04:09]} 20. Rcc8 {[%emt 0:00:08]} Nd7 {[%emt 0:00:45]} 21. Rxf8+ {[%emt 0:00:27]} Nxf8 {[%emt 0:00:05]} 22. Bg5 {[%emt 0:00:25]} f6 {[%emt 0:00:28]} 23. Bd2 {[%emt 0:00:07]} b3 {[%emt 0:00:04]} 24. Rb8 {[%emt 0:00:25]} Bd1 {[%emt 0:00:04]} 25. Bc3 {[%emt 0:00:13]} Kf7 {[%emt 0:00:42]} 26. Kf2 {[%emt 0:00:17]} Nd7 {[%emt 0:00:04]} 27. Rb7 {[%emt 0:00:14]} Nc5 {[%emt 0:00:02]} 28. Ra7 {[%emt 0:00:03]} Bc2 {[%emt 0:00:14]} 29. Ke3 {[%emt 0:00:08]} Bh6+ {[%emt 0:00:02]} 30. Kd4 {[%emt 0:00:23]} Bc1 {[%emt 0:00:03]} 31. Kc4 {[%emt 0:02:16]} g5 {[%emt 0:00:08]} 32. Kb4 {[%emt 0:00:07]} Nd3+ {[%emt 0:00:04]} 33. Ka3 {[%emt 0:00:02]} Nf4 {[%emt 0:00:07]} 34. Bb4 {[%emt 0:00:15]} Kf8 {[%emt 0:00:03]} 35. Ra8+ {[%emt 0:00:26]} Kf7 {[%emt 0:00:01]} 36. Ra7 {[%emt 0:00:05]} Nd3 {[%emt 0:00:04]} 37. Bc3 {[%emt 0:00:02]} h5 {[%emt 0:00:03]} 38. g3 {[%emt 0:00:04]} Ne5 {[%emt 0:00:10]} 39. Bxe5 {[%emt 0:00:25]} fxe5 {[%emt 0:00:02]} 40. Ra8 {[%emt 0:00:18]} Bd1 {[%emt 0:00:05]} 41. Ra4 {[%emt 0:00:13]} Kf6 {[%emt 0:00:06]} 42. Rc4 {[%emt 0:00:04]} Be3 {[%emt 0:00:10]} 43. Rc8 {[%emt 0:00:06]} Bc5+ {[%emt 0:00:05]} 44. Ka4 {[%emt 0:00:02]} Bxf3 {[%emt 0:00:07]} 45. Rf8+ {[%emt 0:00:03]} Kg6 {[%emt 0:00:06]} 46. Rxf3 {[%emt 0:00:03]} h4 {[%emt 0:00:05]} 47. gxh4 {[%emt 0:00:04]} gxh4 {[%emt 0:00:03]} 48. h3 {[%emt 0:00:02]} e6 {[%emt 0:00:06]} 49. dxe6 {[%emt 0:00:03]} d5 {[%emt 0:00:04]} 50. exd5 {[%emt 0:00:02]} e4 {[%emt 0:00:02]} 51. Rf4 {[%emt 0:00:02]} e3 {[%emt 0:00:04]} 52. Re4 {[%emt 0:00:02]} 1-0

[Event "European Online Club-ch-B 2021"]
[Site "Online"]
[Date "2021.03.27"]
[Round "7.20"]
[White "Venard, Paul-Andre"]
[Black "Bjorklund, Thomas"]
[Result "1/2-1/2"]
[ECO "D35"]
[WhiteElo "2048"]
[BlackElo "2174"]
[Annotator "NA"]
[PlyCount "67"]
[EventDate "2021.03.27"]
[EventType "team-tourn"]
[EventCountry "NET"]
[SourceTitle "playchess.com"]
[Source "ChessBase"]
[SourceQuality "1"]
[TimeControl "900+5"]

1. d4 {[%emt 0:00:00]} d5 {[%emt 0:00:03]} 2. c4 {[%emt 0:00:04]} e6 {[%emt 0:00:01]} 3. Nf3 {[%emt 0:00:02]} Nf6 {[%emt 0:00:02]} 4. Nc3 {[%emt 0:00:03]} Be7 {[%emt 0:00:02]} 5. cxd5 {[%emt 0:00:02]} exd5 {[%emt 0:00:03]} 6. Bf4 {[%emt 0:00:03]} c6 {[%emt 0:00:05]} 7. Qc2 {[%emt 0:00:05]} O-O {[%emt 0:00:02]} 8. h3 {[%emt 0:00:07]} Re8 {[%emt 0:00:02]} 9. e3 {[%emt 0:00:04]} Nbd7 {[%emt 0:00:02]} 10. Bd3 {[%emt 0:00:03]} Nf8 {[%emt 0:00:02]} 11. O-O-O {[%emt 0:00:07]} b5 {[%emt 0:00:04]} 12. Ne5 {[%emt 0:00:15]} Qb6 {[%emt 0:00:10]} 13. g4 {[%emt 0:00:10]} a5 {[%emt 0:00:02]} 14. Rdg1 {[%emt 0:00:20]} a4 {[%emt 0:00:02]} 15. g5 {[%emt 0:00:07]} N6d7 {[%emt 0:00:04]} 16. Bxh7+ {[%emt 0:00:44]} Nxh7 {[%emt 0:00:08]} 17. g6 {[%emt 0:00:04]} Nxe5 {[%emt 0:00:32]} 18. gxh7+ {[%emt 0:00:33]} Kh8 {[%emt 0:00:03]} 19. Bxe5 {[%emt 0:01:07]} Bf8 {[%emt 0:00:04]} 20. Rg3 {[%emt 0:05:04]} b4 {[%emt 0:02:00]} 21. Nxa4 {[%emt 0:01:33]} Rxa4 {[%emt 0:00:05]} 22. Qxa4 {[%emt 0:00:51]} Bf5 {[%emt 0:00:12]} 23. Rhg1 {[%emt 0:02:55]} Rxe5 {[%emt 0:03:11]} 24. Qa8 {[%emt 0:01:31]} Kxh7 {[%emt 0:00:56]} 25. Qxf8 {[%emt 0:00:13]} Bg6 {[%emt 0:00:02]} 26. Rxg6 {[%emt 0:00:48]} fxg6 {[%emt 0:00:06]} 27. dxe5 {[%emt 0:00:02]} Qb5 {[%emt 0:00:04]} 28. Qf4 {[%emt 0:00:13]} b3 {[%emt 0:00:10]} 29. a3 {[%emt 0:00:06]} Qd3 {[%emt 0:00:08]} 30. Qh4+ {[%emt 0:00:06]} Kg8 {[%emt 0:00:04]} 31. Qd8+ {[%emt 0:00:02]} Kh7 {[%emt 0:00:01]} 32. Qh4+ {[%emt 0:00:04]} Kg8 {[%emt 0:00:02]} 33. Qd8+ {[%emt 0:00:09]} Kh7 {[%emt 0:00:01]} 34. Qh4+ {[%emt 0:00:07]} 1/2-1/2

[Event "European Online Club-ch-B 2021"]
[Site "Online"]
[Date "2021.03.27"]
[Round "8.1"]
[White "Chlpik, Martin"]
[Black "Brunner, Nicolas"]
[Result "0-1"]
[ECO "D02"]
[WhiteElo "2199"]
[BlackElo "2418"]
[Annotator "NA"]
[PlyCount "108"]
[EventDate "2021.03.27"]
[EventType "team-tourn"]
[EventCountry "NET"]
[SourceTitle "playchess.com"]
[Source "ChessBase"]
[SourceQuality "1"]
[TimeControl "900+5"]

1. d4 {[%emt 0:00:00]} d5 {[%emt 0:00:02]} 2. Bf4 {[%emt 0:00:03]} Nf6 {[%emt 0:00:04]} 3. e3 {[%emt 0:00:01]} e6 {[%emt 0:00:01]} 4. Nd2 {[%emt 0:00:05]} c5 {[%emt 0:00:02]} 5. c3 {[%emt 0:00:04]} Nc6 {[%emt 0:00:03]} 6. Ngf3 {[%emt 0:00:01]} Bd6 {[%emt 0:00:02]} 7. Bg3 {[%emt 0:00:03]} O-O {[%emt 0:00:03]} 8. Bd3 {[%emt 0:00:02]} b6 {[%emt 0:00:02]} 9. Ne5 {[%emt 0:00:38]} Bb7 {[%emt 0:00:03]} 10. f4 {[%emt 0:00:05]} Ne7 {[%emt 0:00:03]} 11. Qb1 {[%emt 0:00:02]} g6 {[%emt 0:02:02]} 12. Bf2 {[%emt 0:00:05]} cxd4 {[%emt 0:00:25]} 13. exd4 {[%emt 0:00:10]} Nh5 {[%emt 0:00:05]} 14. g3 {[%emt 0:00:35]} f6 {[%emt 0:00:09]} 15. Nef3 {[%emt 0:00:25]} Qc8 {[%emt 0:00:09]} 16. O-O {[%emt 0:00:49]} Ba6 {[%emt 0:00:09]} 17. Bxa6 {[%emt 0:00:02]} Qxa6 {[%emt 0:00:02]} 18. Qe1 {[%emt 0:00:18]} Ng7 {[%emt 0:00:08]} 19. Be3 {[%emt 0:00:49]} Nef5 {[%emt 0:01:42]} 20. g4 {[%emt 0:01:57]} Nxe3 {[%emt 0:00:03]} 21. Qxe3 {[%emt 0:00:00]} Rae8 {[%emt 0:00:02]} 22. Rae1 {[%emt 0:00:42]} b5 {[%emt 0:00:54]} 23. a3 {[%emt 0:00:14]} Qc6 {[%emt 0:00:22]} 24. Rf2 {[%emt 0:00:42]} Qc7 {[%emt 0:00:29]} 25. Nh4 {[%emt 0:00:04]} e5 {[%emt 0:01:49]} 26. fxe5 {[%emt 0:00:14]} fxe5 {[%emt 0:00:02]} 27. Rxf8+ {[%emt 0:00:03]} Rxf8 {[%emt 0:00:32]} 28. Qe2 {[%emt 0:03:37]} e4 {[%emt 0:00:47]} 29. Nf1 {[%emt 0:01:28]} Qc6 {[%emt 0:01:04]} 30. Ne3 {[%emt 0:00:33]} Ne6 {[%emt 0:00:04]} 31. Nhg2 {[%emt 0:00:09]} Ng5 {[%emt 0:00:09]} 32. Rf1 {[%emt 0:00:36]} Nf3+ {[%emt 0:00:06]} 33. Kh1 {[%emt 0:00:04]} Bxh2 {[%emt 0:03:06]} 34. Ne1 {[%emt 0:00:04]} Nxe1 {[%emt 0:01:59]} 35. Rxf8+ {[%emt 0:00:06]} Kxf8 {[%emt 0:00:01]} 36. Qxh2 {[%emt 0:00:03]} Qf6 {[%emt 0:00:09]} 37. Qb8+ {[%emt 0:00:14]} Kg7 {[%emt 0:00:03]} 38. Qc7+ {[%emt 0:01:47]} Kh6 {[%emt 0:00:03]} 39. Qh2+ {[%emt 0:00:05]} Kg5 {[%emt 0:00:13]} 40. Qe5+ {[%emt 0:00:10]} Qxe5 {[%emt 0:00:02]} 41. dxe5 {[%emt 0:00:00]} Nd3 {[%emt 0:00:11]} 42. e6 {[%emt 0:00:18]} Kf6 {[%emt 0:00:02]} 43. Nxd5+ {[%emt 0:00:01]} Kxe6 {[%emt 0:00:01]} 44. Nc7+ {[%emt 0:00:02]} Ke5 {[%emt 0:00:03]} 45. Nxb5 {[%emt 0:00:01]} e3 {[%emt 0:00:08]} 46. Nd4 {[%emt 0:00:03]} Nxb2 {[%emt 0:00:03]} 47. Kg2 {[%emt 0:00:12]} Kf4 {[%emt 0:00:03]} 48. Kf1 {[%emt 0:00:18]} Kxg4 {[%emt 0:00:09]} 49. Ke2 {[%emt 0:00:03]} h5 {[%emt 0:00:13]} 50. Kxe3 {[%emt 0:00:10]} Nc4+ {[%emt 0:00:04]} 51. Kf2 {[%emt 0:00:11]} Nxa3 {[%emt 0:00:03]} 52. Nc6 {[%emt 0:00:01]} a6 {[%emt 0:00:12]} 53. Nb4 {[%emt 0:00:14]} a5 {[%emt 0:00:02]} 54. Nc6 {[%emt 0:00:06]} Nc4 {[%emt 0:00:03]} 0-1

[Event "European Online Club-ch-B 2021"]
[Site "Online"]
[Date "2021.03.27"]
[Round "8.2"]
[White "Mathieu, Phileas"]
[Black "Solcan, Martin"]
[Result "0-1"]
[ECO "B27"]
[WhiteElo "2240"]
[BlackElo "2076"]
[Annotator "NA"]
[PlyCount "88"]
[EventDate "2021.03.27"]
[EventType "team-tourn"]
[EventCountry "NET"]
[SourceTitle "playchess.com"]
[Source "ChessBase"]
[SourceQuality "1"]
[TimeControl "900+5"]

1. e4 {[%emt 0:00:00]} c5 {[%emt 0:00:04]} 2. Nf3 {[%emt 0:00:02]} g6 {[%emt 0:00:01]} 3. c3 {[%emt 0:00:04]} Bg7 {[%emt 0:00:02]} 4. d4 {[%emt 0:00:05]} cxd4 {[%emt 0:00:01]} 5. cxd4 {[%emt 0:00:04]} d5 {[%emt 0:00:02]} 6. e5 {[%emt 0:00:02]} Bg4 {[%emt 0:00:02]} 7. Nbd2 {[%emt 0:00:06]} Nc6 {[%emt 0:00:02]} 8. Be2 {[%emt 0:00:10]} Nh6 {[%emt 0:00:05]} 9. O-O {[%emt 0:00:06]} Nf5 {[%emt 0:00:06]} 10. h3 {[%emt 0:00:06]} Bxf3 {[%emt 0:00:08]} 11. Nxf3 {[%emt 0:00:01]} Qb6 {[%emt 0:00:09]} 12. Be3 {[%emt 0:00:20]} Nxe3 {[%emt 0:02:18]} 13. fxe3 {[%emt 0:00:04]} Bh6 {[%emt 0:00:01]} 14. Qd2 {[%emt 0:00:14]} f6 {[%emt 0:00:20]} 15. exf6 {[%emt 0:01:23]} exf6 {[%emt 0:00:03]} 16. Rae1 {[%emt 0:00:04]} O-O {[%emt 0:00:07]} 17. Bd1 {[%emt 0:00:04]} Rae8 {[%emt 0:00:24]} 18. Bb3 {[%emt 0:00:03]} Qb5 {[%emt 0:00:40]} 19. Qf2 {[%emt 0:04:06]} Na5 {[%emt 0:01:52]} 20. Nd2 {[%emt 0:00:55]} Nxb3 {[%emt 0:00:17]} 21. Nxb3 {[%emt 0:00:03]} b6 {[%emt 0:01:56]} 22. Re2 {[%emt 0:01:35]} Qd3 {[%emt 0:00:33]} 23. Rfe1 {[%emt 0:00:05]} f5 {[%emt 0:00:51]} 24. Qf3 {[%emt 0:00:05]} Re4 {[%emt 0:00:26]} 25. Nd2 {[%emt 0:01:46]} Bxe3+ {[%emt 0:00:03]} 26. Kh1 {[%emt 0:00:02]} f4 {[%emt 0:01:34]} 27. Nxe4 {[%emt 0:00:08]} dxe4 {[%emt 0:00:01]} 28. Qg4 {[%emt 0:01:28]} Rf5 {[%emt 0:00:03]} 29. Qh4 {[%emt 0:00:26]} Qxd4 {[%emt 0:00:02]} 30. Qe7 {[%emt 0:00:08]} Rf7 {[%emt 0:01:04]} 31. Qe8+ {[%emt 0:00:05]} Kg7 {[%emt 0:00:49]} 32. Qe6 {[%emt 0:00:05]} Qd3 {[%emt 0:00:26]} 33. Qe5+ {[%emt 0:00:07]} Kh6 {[%emt 0:00:07]} 34. Qe8 {[%emt 0:00:45]} Qd5 {[%emt 0:00:29]} 35. b3 {[%emt 0:01:07]} Rf5 {[%emt 0:01:18]} 36. Qe7 {[%emt 0:00:47]} Rf7 {[%emt 0:00:19]} 37. Qb4 {[%emt 0:00:21]} a5 {[%emt 0:00:19]} 38. Qa4 {[%emt 0:00:49]} Rc7 {[%emt 0:00:14]} 39. Qe8 {[%emt 0:00:11]} Qf5 {[%emt 0:00:13]} 40. Rf1 {[%emt 0:00:05]} f3 {[%emt 0:00:41]} 41. Rxe3 {[%emt 0:00:12]} fxg2+ {[%emt 0:00:03]} 42. Kxg2 {[%emt 0:00:01]} Rc2+ {[%emt 0:00:02]} 43. Kg1 {[%emt 0:00:03]} Qg5+ {[%emt 0:00:04]} 44. Kh1 {[%emt 0:00:01]} Qg2# {[%emt 0:00:02]} 0-1